[Event "MPL 41st IND-ch Teams 2022"]
[Site "Jalgaon"]
[Date "2022.04.11"]
[Round "6.6"]
[White "Deepan Chakkravarthy J."]
[Black "Jithin K"]
[Result "1-0"]
[ECO "C41"]
[WhiteElo "2520"]
[BlackElo "1597"]
[Annotator "TA"]
[PlyCount "59"]
[EventDate "2022.04.08"]
[EventType "team-tourn"]
[EventCountry "IND"]
[SourceTitle "playchess.com"]
[Source "ChessBase"]
[SourceQuality "1"]
[TimeControl "5400+30"]

{[%evp 11,59,37,41,33,50,43,42,19,57,45,50,45,63,60,60,47,98,73,163,156,154,152,158,160,176,156,225,183,187,184,195,146,197,132,214,231,224,232,266,269,351,297,556,570,610,590,896,890,1219,1035]} 1. e4 d6 2. d4 e5 3. Nf3 exd4 4. Nxd4 Nf6 5. Nc3 Be7 6. g3 O-O 7. Bg2 {C41: Philidor Defence.} c6 8. O-O Na6 9. h3 {White is slightly better.} Nc5 {[#]} 10. Nb3 $146 ({Predecessor:} 10. Re1 a5 11. Bf4 Re8 12. Qd2 Bf8 13. Rad1 a4 14. a3 h6 15. g4 Qb6 16. Qc1 {½-½ (34) Gokerkan,C (2461)-Livaic,L (2507) Chess.com INT 2020}) 10... Be6 11. Be3 {[%cal Oe4e5]} Nxb3 12. axb3 Qc7 13. f4 {[%cal Bf2f4,Bf4f5][%mdl 32]} ({Reject} 13. Rxa7 Rxa7 14. Bxa7 b6 $11) ({But not} 13. Bxa7 $2 b6 14. Bxb6 (14. e5 $2 dxe5 15. Nb5 Qb7 $19) 14... Qxb6 $19) 13... b6 {Black is on the road to losing.} (13... h6 $14) 14. g4 $16 {[%cal Bg3g4,Bg4g5][%mdl 32] Threatens to win with g5.} Rfd8 (14... h6 $16) 15. g5 $18 Ne8 16. f5 Bc8 17. h4 $36 {[%mdl 2048] White is on the roll. 0x0.00264cf1c310dp-1022s more active pieces.} Bf8 18. Qg4 Rb8 (18... b5 $16 19. b4 a5) 19. Qg3 a5 20. Kh2 Ba6 21. Rfe1 (21. Rf2 $18) 21... Bc8 (21... g6 $16 22. f6 Bc8) 22. Bf4 ({White should play} 22. f6 $18) 22... Qd7 (22... g6 $16) 23. Nd1 {[%cal Bc3d1,Bd1e3,Be3c4][%mdl 32]} Bb7 24. Ne3 Ra8 25. Rad1 Qc8 26. Nc4 Qc7 (26... Ra6 {might work better.} 27. g6 f6 28. gxh7+ Kxh7) 27. e5 {[%cal Be4e5,Be5e6,Be6f7][%mdl 32] White is clearly winning.} d5 {[#]} 28. e6 $1 Bd6 (28... Nd6 29. e7) 29. Nxd6 Rxd6 30. exf7+ {Weighted Error Value: White=0.11 (very precise) /Black=0.40} 1-0

[Event "MPL 41st IND-ch Teams 2022"]
[Site "Jalgaon"]
[Date "2022.04.11"]
[Round "6.7"]
[White "Srikanth, K.."]
[Black "Swapnil, S. Dhopade"]
[Result "0-1"]
[ECO "B10"]
[WhiteElo "1877"]
[BlackElo "2495"]
[Annotator "TA"]
[PlyCount "114"]
[EventDate "2022.04.08"]
[EventType "team-tourn"]
[EventCountry "IND"]
[SourceTitle "playchess.com"]
[Source "ChessBase"]
[SourceQuality "1"]
[TimeControl "5400+30"]

{[%evp 9,114,-8,0,0,2,-19,-16,-16,-24,-20,-23,-29,-29,-30,-18,-19,-20,-25,-22,-27,-12,-76,-70,-72,-70,-66,-63,-66,-35,-50,-44,-47,-40,-56,-52,-58,-54,-43,-47,-66,-64,-72,-73,-95,-79,-85,-124,-165,-160,-222,-218,-250,-232,-235,-231,-251,-184,-197,-189,-188,-182,-183,-189,-183,-173,-193,-195,-308,-299,-400,-408,-408,-408,-429,-382,-333,-283,-447,-440,-439,-433,-422,-346,-306,-359,-359,-359,-359,-359,-352,-352,-344,-324,-403,-403,-316,-316,-403,-376,-403,-403,-511,-389,-386,-324,-814,-572]} 1. e4 c6 2. Nc3 d5 3. f4 dxe4 4. Nxe4 Nf6 5. Nf2 g6 6. Nf3 {B11: Caro-Kann: Two Knights Variation.} Bg7 7. Bc4 O-O 8. d4 {The position is equal.} c5 9. dxc5 Qa5+ 10. Bd2 Qxc5 11. Qe2 Nc6 {[%cal Bb8c6,Bc6a5,Ba5c4][%mdl 32]} 12. Be3 Qa5+ {[#]} 13. c3 $146 ({Predecessor:} 13. Bd2 Qb6 14. Bc3 Nh5 15. g3 Bxc3+ 16. bxc3 Qb2 17. O-O Qxc3 18. Ne4 Qg7 19. Qe3 {0-1 (44) Euler,G (2301)-Poetsch,H (2513) Wiesbaden 2018}) 13... Qc7 14. O-O Na5 15. Ne5 (15. Bd3 $11 {remains equal.}) 15... Nxc4 $17 16. Qxc4 Qxc4 17. Nxc4 Nd5 18. Bd2 b6 19. Ne5 Ba6 20. Rfe1 Rac8 21. Rad1 Rfd8 22. Bc1 b5 23. a3 Bb7 24. Ne4 a5 25. Nd3 Ba8 {[%cal Ob5b4] Black continues to play with concentration.} 26. Nec5 e6 27. Kf1 Bf8 28. Nb3 b4 29. c4 (29. cxb4 $17 {was necessary.} axb4 30. axb4) 29... Rxc4 $19 30. Nxa5 Rcc8 {[#] Strongly threatening ...bxa3.} 31. a4 Nb6 {[%cal Bd5b6,Bb6a4,Ba4c3][%mdl 32]} 32. b3 Rd5 33. Be3 {[#]} Nxa4 {[%mdl 512]} 34. Nc4 Nc3 35. Rd2 Rcd8 $36 {[%mdl 2048] Black has strong initiative.} 36. Nde5 Rxd2 37. Bxd2 Bd5 38. Be3 (38. Rc1 {keeps fighting.}) 38... f6 39. Ng4 Bxc4+ 40. bxc4 b3 {[%cal Bb4b3,Bb3b2][%mdl 32] And now ...b2 would win.} 41. Bc1 Kf7 42. Bb2 Bb4 43. Bxc3 (43. Nf2 $142) 43... Bxc3 {[%mdl 4096] Endgame KRB-KRN} 44. Rb1 b2 {...Ra8 is the strong threat.} 45. Nf2 Rd4 46. Nd1 Rxf4+ 47. Ke2 Be5 ({Weaker is} 47... Rxc4 48. Kd3 Rh4 49. Nxc3 $11) 48. Nxb2 Bxb2 49. Rxb2 Rxc4 {KR-KR} 50. Rb7+ Kg8 51. Rb6 Re4+ 52. Kf3 f5 53. Rb7 h5 {[%cal Bh7h5,Bh5h4][%mdl 32]} 54. g3 h4 {Hoping for ...h3.} 55. Re7 Kf8 56. Rh7 g5 57. h3 $2 (57. Kg2) 57... Ra4 {Weighted Error Value: White=0.32/Black=0.09 (flawless)} 0-1

[Event "MPL 41st IND-ch Teams 2022"]
[Site "Jalgaon"]
[Date "2022.04.11"]
[Round "6.8"]
[White "Visakh N R"]
[Black "Jashanpreet Singh"]
[Result "1-0"]
[ECO "A56"]
[WhiteElo "2522"]
[BlackElo "1709"]
[Annotator "TA"]
[PlyCount "67"]
[EventDate "2022.04.08"]
[EventType "team-tourn"]
[EventCountry "IND"]
[SourceTitle "playchess.com"]
[Source "ChessBase"]
[SourceQuality "1"]
[TimeControl "5400+30"]

{[%evp 14,67,96,78,159,113,119,124,126,108,118,105,116,115,154,154,148,141,167,149,213,147,155,57,57,55,89,85,141,97,135,77,71,74,69,66,79,78,259,254,396,261,479,462,891,879,1423,1592,29985,29986,29990,29991,29992,29993,29993,29994]} 1. d4 Nf6 2. c4 c5 3. d5 e5 4. Nc3 d6 5. e4 Be7 6. Bd3 O-O 7. Nge2 {[%cal Bg1e2,Be2g3,Bg3e4][%mdl 32]} Ne8 8. O-O f5 {A56: Czech Benoni.} (8... Bg5 $142) 9. exf5 ({White should play} 9. f4) 9... Bxf5 $16 {[#]} 10. Bxf5 $146 ({Predecessor:} 10. f4 Bxd3 11. Qxd3 Nd7 12. Be3 Nc7 13. Rad1 b6 14. a3 Bf6 15. b4 exf4 16. Bxf4 {1-0 (29) Khemoudj,F-Morrey,P London 1994}) 10... Rxf5 {White is better.} 11. f4 {[%cal Bf2f4,Bf4f5][%mdl 32]} Nd7 12. Ng3 Rf8 13. Nge4 Bf6 {[#]} 14. f5 $1 Be7 15. Qd3 Nc7 16. Qg3 Kh8 (16... Nf6 $16 17. Ng5 (17. Bh6 Nce8 $14) 17... a6) 17. Bg5 Nf6 18. Be3 (18. Bxf6 $16 Bxf6 19. Qg4) 18... Nxe4 $14 19. Nxe4 Qd7 20. Bg5 Bf6 ({Black should try} 20... Bxg5 21. Nxg5 (21. Qxg5 Ne8 $14) 21... b5) 21. Rf3 Ne8 22. Qh4 (22. a4 $142) 22... b5 $16 23. b3 {0x0.0023204fde27dp-1022s more active pieces.} bxc4 24. bxc4 Rb8 25. Raf1 $40 {[%mdl 128] White goes for the king.} Bxg5 $2 {Black cannot hold the game after this.} (25... Qe7 $16) 26. Nxg5 $18 {[%csl Gg5][%cal Rh4h7] [#]} ({Stronger than} 26. Qxg5 Nf6 27. Nxf6 Rxf6 $11) 26... Nf6 (26... h6 $142 27. Ne6 Rf6) 27. Ne6 {aiming for g4.} Rf7 $2 (27... Qa4 28. Rb3 (28. Nxf8 Rxf8 29. Rc1 Qxa2 $16) 28... Kg8) 28. g4 {[%cal Bg2g4,Bg4g5][%mdl 32]} Rb4 (28... Qa4 $142 29. Ng5 Kg8 30. Nxf7 Qxc4 31. Nxd6 Qd4+ 32. Kh1 h6) 29. g5 e4 30. Rg3 Rxc4 31. gxf6 {White mates.} gxf6 32. Kh1 Rb4 33. Rfg1 {[%csl Gg1][%cal Rg3g8]} Rb8 34. Qh6 {Weighted Error Value: White=0.19 (very precise) /Black=0.71} 1-0

[Event "MPL 41st IND-ch Teams 2022"]
[Site "Jalgaon"]
[Date "2022.04.12"]
[Round "7.1"]
[White "Arun Kataria"]
[Black "Aravindh, Chithambaram VR."]
[Result "1/2-1/2"]
[ECO "B43"]
[WhiteElo "1629"]
[BlackElo "2611"]
[Annotator "RC"]
[PlyCount "115"]
[EventDate "2022.04.08"]
[EventType "team-tourn"]
[EventCountry "IND"]
[SourceTitle "playchess.com"]
[Source "ChessBase"]
[SourceQuality "1"]
[TimeControl "5400+30"]

1. e4 {[%emt 0:03:36]} c5 {[%emt 0:00:08]} 2. Nf3 {[%emt 0:00:03]} e6 {[%emt 0:00:06]} 3. d4 {[%emt 0:00:04]} cxd4 {[%emt 0:00:06]} 4. Nxd4 {[%emt 0:00:02]} a6 {[%emt 0:00:10]} 5. Nc3 {[%emt 0:00:20]} b5 {[%emt 0:00:09]} 6. Be3 {[%emt 0:01:28]} Bb7 {[%emt 0:00:15]} 7. f3 {[%emt 0:00:53]} Qc7 {[%emt 0:00:43]} 8. Be2 {[%emt 0:01:50]} Nf6 {[%emt 0:00:16]} 9. Qd2 {[%emt 0:02:40]} b4 {[%emt 0:00:43]} 10. Na4 {[%emt 0:04:51]} d5 {[%emt 0:00:40]} 11. e5 {[%emt 0:01:17]} Nfd7 {[%emt 0:00:05]} 12. f4 {[%emt 0:00:30]} Nc6 {[%emt 0:00:18]} 13. b3 {[%emt 0:06:26]} Rc8 {[%emt 0:05:13]} 14. Nf3 {[%emt 0:05:07]} Ncb8 {[%emt 0:09:24]} 15. Nd4 {[%emt 0:05:12]} Nc5 {[%emt 0:00:46]} 16. Nxc5 {[%emt 0:00:06]} Bxc5 {[%emt 0:00:07]} 17. O-O {[%emt 0:00:35]} Nc6 {[%emt 0:01:06]} 18. Nxc6 {[%emt 0:10:07]} Qxc6 {[%emt 0:00:17]} 19. Bxc5 {[%emt 0:00:06]} Qxc5+ {[%emt 0:00:05]} 20. Kh1 {[%emt 0:00:02]} Qxc2 {[%emt 0:18:31]} 21. Qxb4 {[%emt 0:00:19]} Qxe2 {[%emt 0:00:08]} 22. Qxb7 {[%emt 0:00:06]} O-O {[%emt 0:00:28]} 23. Rfe1 {[%emt 0:02:15]} Qd3 {[%emt 0:03:43]} 24. Rad1 {[%emt 0:01:55]} Qf5 {[%emt 0:05:23]} 25. Qxa6 {[%emt 0:01:31]} Qxf4 {[%emt 0:00:05]} 26. Qe2 {[%emt 0:00:11]} g6 {[%emt 0:03:02]} 27. h3 {[%emt 0:06:19]} Rc7 {[%emt 0:07:17]} 28. Qd2 {[%emt 0:00:49]} Qg3 {[%emt 0:03:00]} 29. Rc1 {[%emt 0:01:33]} Rfc8 {[%emt 0:00:09]} 30. Rxc7 Rxc7 {[%emt 0:00:04]} 31. Qe3 {[%emt 0:01:10]} Qh4 {[%emt 0:00:32]} 32. Rf1 {[%emt 0:04:35]} d4 {[%emt 0:01:15]} 33. Qf3 {[%emt 0:01:01]} Rd7 {[%emt 0:04:11]} 34. Rd1 {[%emt 0:04:55]} Qg5 {[%emt 0:00:31]} 35. Qe4 {[%emt 0:00:35]} Qd8 {[%emt 0:04:51]} 36. Rd3 {[%emt 0:01:31]} Qb6 {[%emt 0:00:08]} 37. a3 {[%emt 0:03:22]} Rd5 {[%emt 0:00:30]} 38. Qf4 {[%emt 0:04:51]} Qc5 {[%emt 0:02:11]} 39. b4 {[%emt 0:03:13]} Qc4 {[%emt 0:00:07]} 40. Qe4 {[%emt 0:01:31]} h5 {[%emt 0:00:15]} 41. Kh2 {[%emt 0:02:07]} Kg7 {[%emt 0:00:53]} 42. Kh1 {[%emt 0:00:45]} Kf8 {[%emt 0:01:16]} 43. Rf3 {[%emt 0:01:12]} Kg8 {[%emt 0:04:29]} 44. Rd3 {[%emt 0:00:13]} Kh7 {[%emt 0:03:13]} 45. Kh2 {[%emt 0:00:38]} Kg7 {[%emt 0:03:35]} 46. Kh1 {[%emt 0:00:20]} Kf8 {[%emt 0:00:21]} 47. Rf3 {[%emt 0:00:09]} Qc1+ {[%emt 0:00:35]} 48. Kh2 {[%emt 0:00:10]} Qc7 {[%emt 0:01:04]} 49. Qxg6 {[%emt 0:00:59]} Qxe5+ {[%emt 0:00:06]} 50. Kh1 {[%emt 0:00:07]} Rd7 {[%emt 0:00:58]} 51. Qd3 {[%emt 0:01:21]} f5 {[%emt 0:03:49]} 52. Qd2 {[%emt 0:02:24]} Kf7 {[%emt 0:06:23]} 53. a4 {[%emt 0:03:51]} Rc7 {[%emt 0:02:07]} 54. a5 {[%emt 0:03:49]} Qe4 {[%emt 0:02:25]} 55. Qh6 {[%emt 0:06:13]} Qe1+ {[%emt 0:05:18]} 56. Kh2 {[%emt 0:00:04]} Qe5+ {[%emt 0:00:03]} 57. Kh1 {[%emt 0:00:13]} Qe1+ {[%emt 0:01:37]} 58. Kh2 {[%emt 0:00:03]} 1/2-1/2

[Event "MPL 41st IND-ch Teams 2022"]
[Site "Jalgaon"]
[Date "2022.04.12"]
[Round "7.2"]
[White "Harsha Bharathakoti"]
[Black "Chandrajeet Singh Rajawat"]
[Result "1-0"]
[ECO "A05"]
[WhiteElo "2499"]
[BlackElo "1789"]
[Annotator "TA"]
[PlyCount "55"]
[EventDate "2022.04.08"]
[EventType "team-tourn"]
[EventCountry "IND"]
[SourceTitle "playchess.com"]
[Source "ChessBase"]
[SourceQuality "1"]
[TimeControl "5400+30"]

{[%evp 20,55,0,0,0,0,15,8,16,10,26,17,74,65,81,70,157,132,155,153,320,317,309,318,318,318,397,405,598,572,676,664,641,640,12828,12815,1850,1235]} 1. Nf3 Nf6 2. b3 g6 3. Bb2 Bg7 4. e3 c5 5. c4 O-O 6. Be2 b6 7. O-O Bb7 8. Nc3 Nc6 9. d4 cxd4 10. Nxd4 Nxd4 11. Qxd4 Ne4 {A35: Symmetrical English: 2 Nc3 Nc6 3 Nf3.} 12. Qd3 Nxc3 13. Bxc3 Bxc3 {The position is equal.} 14. Qxc3 d5 15. Rfd1 {[%cal Bf1d1,Bd1d7,Bd7c7][%mdl 32] [#]} Qc8 $146 (15... Qc7 $11) ({Predecessor:} 15... Qc7 16. Rac1 Rac8 17. Qd2 Qe5 18. Bf3 e6 19. Qd4 Qc7 20. Qd2 dxc4 21. Rxc4 Qe7 22. Rxc8 Rxc8 23. Bxb7 Qxb7 {0-1 (45) Ager,J (2090)-Dimitriadis,M (2028) Pinkafeld 2015}) 16. Qe5 $16 dxc4 17. Rac1 e6 ({Black should try} 17... Qe6 $14 18. Qxe6 fxe6) 18. Rxc4 Qb8 19. Rc7 $36 {[%mdl 2048] [#] Threatens to win with h4. White has strong initiative. &Bianco is much more active. The black rooks are badly placed.} Rc8 $2 (19... a5 $16) 20. Rdd7 $18 {[%csl LRb7,LRf7]} Rxc7 21. Rxc7 {aiming for Qf4.} Bd5 22. e4 Bc6 {[#]} 23. h4 $1 Be8 (23... h6 $142 24. Bg4 Bd7) 24. h5 {White wants to mate with h6. White is clearly winning.} gxh5 25. Bxh5 {[%cal Be2h5,Bh5f7,Bf7e8][%mdl 32]} Qd8 26. Qf4 {[%cal Rh5f7]} Qd4 27. Bxf7+ Kh8 28. Bxe8 {Black got outplayed after the opening.  Weighted Error Value: White=0.00 (flawless) /Black=0.56} 1-0

[Event "MPL 41st IND-ch Teams 2022"]
[Site "Jalgaon"]
[Date "2022.04.12"]
[Round "7.3"]
[White "Bharadia Yash"]
[Black "Sankalp Gupta"]
[Result "0-1"]
[ECO "C70"]
[WhiteElo "1607"]
[BlackElo "2536"]
[Annotator "TA"]
[PlyCount "66"]
[EventDate "2022.04.08"]
[EventType "team-tourn"]
[EventCountry "IND"]
[SourceTitle "playchess.com"]
[Source "ChessBase"]
[SourceQuality "1"]
[TimeControl "5400+30"]

{[%evp 12,65,17,29,21,14,23,0,9,7,7,0,0,0,0,0,0,-9,0,-57,-20,-68,-66,-68,-56,-66,-22,-58,-58,-50,-66,-68,-88,-120,-111,-121,-116,-126,-122,-121,-111,-150,-97,-178,-129,-124,-129,-701,-725,-689,-713,-29996,-29997,-29997,-29998,-29999]} 1. e4 {[%emt 0:04:16]} e5 {[%emt 0:00:03]} 2. Nf3 {[%emt 0:00:11]} Nc6 {[%emt 0:00:03]} 3. Bb5 {[%emt 0:00:11]} a6 {[%emt 0:00:04]} 4. Ba4 {[%emt 0:00:11]} f5 {[%emt 0:00:02]} 5. d3 {[%emt 0:07:52]} fxe4 {[%emt 0:00:17]} 6. dxe4 {[%emt 0:00:07]} Nf6 {[%emt 0:00:04]} 7. O-O {[%emt 0:08:11]} d6 {[%emt 0:00:05] C70: Ruy Lopez: 3...a6 4 Ba4, Norwegian and Delayed Schliemann.} (7... Nxe4 8. Qe2 Nf6 9. Bxc6 (9. Nxe5 Nxe5 10. Qxe5+ Be7 $14) 9... dxc6 10. Nxe5 $16) 8. Nc3 {[%emt 0:01:47]} Be7 {[%emt 0:00:47]} 9. h3 {[%emt 0:00:34]} b5 {[%emt 0:06:53] The position is equal.} 10. Bb3 {[%emt 0:00:11]} Na5 $1 {[%emt 0:00:09]} 11. Bg5 {[%emt 0:08:55] [#]} c6 $146 {[%emt 0:07:42]} ({Predecessor:} 11... Nxb3 12. axb3 Be6 13. Qe2 O-O 14. Rfd1 Qe8 15. Ra5 Nh5 16. Be3 Qg6 17. Nd5 Bd8 {0-1 (54) Alboredo,J (1970)-Cristobal,M (2268) Sao Paulo 2015}) 12. Qd3 {[%emt 0:02:30]} Nxb3 {[%emt 0:03:21]} 13. axb3 {[%emt 0:00:11]} O-O {[%emt 0:01:40]} 14. Rfd1 {[%emt 0:07:00]} Qe8 {[%emt 0:02:02]} 15. Nh2 {[%emt 0:03:16]} (15. Ne2 $11) 15... Qg6 {[%emt 0:08:28]} 16. Bxf6 {[%emt 0:05:54]} (16. Bh4 $11) 16... Qxf6 {[%emt 0:00:11]} 17. Rf1 {[%emt 0:02:11]} Qg6 {[%emt 0:07:32]} 18. Ne2 {[%emt 0:03:51]} d5 {[%emt 0:05:17]} 19. Ng3 {[%emt 0:13:46]} d4 {[%emt 0:07:49]} 20. Nf3 {[%emt 0:06:07]} Qf6 {[%emt 0:03:13]} 21. Nd2 {[%emt 0:00:47]} c5 {[%emt 0:01:37]} 22. Kh2 {[%emt 0:02:01]} Rb8 {[%emt 0:03:20][%cal Ba8b8,Bb8b6,Bb6g6][%mdl 32]} 23. Ne2 {[%emt 0:03:10]} Rb6 {[%emt 0:04:20]} 24. Ng3 {[%emt 0:03:40]} Qf4 {[%emt 0:03:56]} 25. Kg1 {[%emt 0:02:30]} Rg6 {[%emt 0:00:42] &Nero is more active.} 26. Nf5 {[%emt 0:00:51]} Bd8 {[%emt 0:08:35]} ({Weaker is} 26... Bxf5 27. exf5 Rxf5 28. g3 $17) (26... Rxf5 $142 27. exf5 Bxf5) 27. Ng3 {[%emt 0:02:08]} (27. g3 $17) 27... Bc7 {[%emt 0:03:09]} ({Black should play} 27... h5 $19 {Hoping for ...h4.} 28. Nf5 h4) 28. Kh1 {[%emt 0:01:20]} Rh6 {[%emt 0:00:52][%cal Oc8h3] Threatens to win with ...Bxh3!} 29. c4 $2 {[%emt 0:00:38][%mdl 8192] [#] White does not recover from this.} (29. Kg1 $17) 29... Bxh3 $1 $19 {[%emt 0:02:24][%mdl 512] And now ...Qh4 would win.} 30. gxh3 {[%emt 0:00:41]} (30. Rxa6 bxc4) 30... Qg4 $1 {[%emt 0:00:10]} 31. Kg1 {[%emt 0:01:07]} Qxh3 {[%emt 0:00:32][%csl Gh6][%cal Rh3h2] Black mates.} 32. Nf3 {[%emt 0:00:08] [#]} Rxf3 $1 {[%emt 0:00:06][%mdl 576] Remove Defender} 33. Qxf3 {[%emt 0:00:06]} (33. Rfd1 Qh2+) 33... Qh2# {[%emt 0:00:04] Weighted Error Value: White=0.61/Black=0.08 (flawless)} 0-1

[Event "MPL 41st IND-ch Teams 2022"]
[Site "Jalgaon"]
[Date "2022.04.12"]
[Round "7.4"]
[White "Raja Rithvik R"]
[Black "Mandloi, Mukesh"]
[Result "1-0"]
[ECO "A38"]
[WhiteElo "2490"]
[BlackElo "1749"]
[Annotator "TA"]
[PlyCount "62"]
[EventDate "2022.04.08"]
[EventType "team-tourn"]
[EventCountry "IND"]
[SourceTitle "playchess.com"]
[Source "ChessBase"]
[SourceQuality "1"]
[TimeControl "5400+30"]

{[%evp 21,62,75,85,47,70,57,54,51,164,157,168,168,171,171,179,168,179,179,180,173,180,175,275,181,181,170,197,191,212,156,239,252,288,295,2261,329,29989,-1112,1132,1125,1089,866,1926]} 1. c4 {[%emt 0:03:24]} Nf6 {[%emt 0:00:17]} 2. Nc3 {[%emt 0:00:48]} c5 {[%emt 0:00:10]} 3. Nf3 {[%emt 0:00:08]} Nc6 {[%emt 0:00:28]} 4. g3 {[%emt 0:00:08]} g6 {[%emt 0:00:16]} 5. Bg2 {[%emt 0:00:08]} Bg7 {[%emt 0:00:10]} 6. d4 {[%emt 0:00:09]} cxd4 {[%emt 0:00:03]} 7. Nxd4 {[%emt 0:00:18]} O-O {[%emt 0:00:30]} 8. O-O d5 {[%emt 0:07:29]} 9. cxd5 {[%emt 0:03:18]} Nxd5 {[%emt 0:00:14]} 10. Nxd5 {[%emt 0:11:54]} Nxd4 {[%emt 0:00:21]} 11. Bg5 {[%emt 0:00:29]} Nc6 {[%emt 0:01:00]} 12. Rc1 {[%emt 0:04:42][%cal Ba1c1,Bc1c6,Bc6c7,Bc7e7][%mdl 32] Strongly threatening Rxc6! D79: Fianchetto Grünfeld: Symmetrical Variation (6 0-0 c6 7 cxd5 cxd5).} h6 {[%emt 0:01:29] [#]} 13. Rxc6 $1 {[%emt 0:03:01] &Bianco is more active.} hxg5 {[%emt 0:00:40]} 14. Rc7 {[%emt 0:01:47] [#] White is slightly better.} Be5 $146 {[%emt 0:08:27]} (14... Bxb2 $14 15. Qc2 (15. Nxe7+ Kg7 $16) 15... Bf6) ({Predecessor:} 14... Kh7 15. Rxe7 Be6 16. Rxb7 Rb8 17. Rxa7 Rxb2 18. Qd3 Qb8 19. Ra5 Rc8 {1-0 (68) Dilanyan,G (2296)-Kocharyan,H (2128) Yerevan 2016}) 15. Rxe7 $18 {[%emt 0:06:51]} ({Resist} 15. Nxe7+ $6 Kg7 16. Rxc8 Qxe7 $16) 15... Bd6 {[%emt 0:00:11]} 16. Re3 {[%emt 0:03:53] And now Qd4 would win.} Be6 {[%emt 0:01:56]} 17. Rd3 {[%emt 0:00:58]} Be5 {[%emt 0:00:13] [#]} 18. Nf4 $1 {[%emt 0:02:50][%mdl 512]} Qb6 {[%emt 0:03:40]} (18... Qe8 19. Nxe6) 19. Nxe6 {[%emt 0:00:23]} Qxe6 {[%emt 0:00:13]} 20. Bxb7 {[%emt 0:00:05]} Rab8 {[%emt 0:00:37]} 21. Bd5 {[%emt 0:00:07]} Qh3 {[%emt 0:00:55]} (21... Qf6 $142 22. b3 Rbd8) 22. Bg2 {[%emt 0:01:20]} Qe6 {[%emt 0:00:32]} 23. b3 {[%emt 0:00:06]} Kg7 {[%emt 0:00:35]} 24. Rd7 {[%emt 0:00:29]} a5 {[%emt 0:00:47]} 25. Qd5 {[%emt 0:00:54]} Rb6 {[%emt 0:02:24]} (25... Qxd5 $16 26. Rxd5 Bc3) 26. Rd1 {[%emt 0:00:22]} Bc3 {[%emt 0:03:47]} 27. Qxg5 {[%emt 0:04:27]} Qe4 $2 (27... Bb4 28. Qc1 Rb5) 28. e3 $2 (28. Bxe4 {Intending Qe3 and mate.} Bb4 29. Bd5) 28... Qxe3 $2 {[%emt 0:01:08]} (28... Qb4 $18 29. Bf1 Qe4) 29. Qc5 $4 {[%emt 0:00:33][%mdl 8192]} Qe2 $4 {[%emt 0:01:48][%mdl 8192]} (29... Qxc5 $19 30. Rf1 Re8) 30. Qxc3+ {[%emt 0:00:05]} Rf6 {[%emt 0:00:07]} 31. Kh1 {[%emt 0:00:01] Hoping for R7d6.} Qxf2 {[%emt 0:00:50] Weighted Error Value: White=0.75/Black=0.70} 1-0

[Event "MPL 41st IND-ch Teams 2022"]
[Site "Jalgaon"]
[Date "2022.04.12"]
[Round "7.5"]
[White "Krishna C R G"]
[Black "Dony K V"]
[Result "1-0"]
[ECO "D11"]
[WhiteElo "2466"]
[BlackElo "1633"]
[Annotator "TA"]
[PlyCount "42"]
[EventDate "2022.04.08"]
[EventType "team-tourn"]
[EventCountry "IND"]
[SourceTitle "playchess.com"]
[Source "ChessBase"]
[SourceQuality "1"]
[TimeControl "5400+30"]

{[%evp 9,42,28,27,20,24,18,27,25,34,29,36,41,50,39,39,0,0,0,6,25,92,93,403,391,513,478,484,477,656,680,673,666,652,627,29999]} 1. d4 {[%emt 0:00:09]} Nf6 {[%emt 0:01:03]} 2. Nf3 {[%emt 0:00:03]} d5 {[%emt 0:00:49]} 3. c4 {[%emt 0:00:03]} c6 {[%emt 0:00:07]} 4. e3 {[%emt 0:00:06]} g6 {[%emt 0:00:13]} 5. Nbd2 {[%emt 0:00:08]} Bg7 {[%emt 0:00:22]} 6. b4 {[%emt 0:00:02] D70: Grünfeld: Unusual White 3rd moves (met by ...d5).} O-O {[%emt 0:00:29]} 7. a4 {[%emt 0:00:04]} a5 {[%emt 0:01:05]} 8. b5 {[%emt 0:00:07] White has an edge.} dxc4 {[%emt 0:01:59]} 9. Bxc4 {[%emt 0:00:49]} cxb5 {[%emt 0:01:42]} 10. axb5 {[%emt 0:07:54]} Nbd7 {[%emt 0:03:15] [#]} 11. Ba3 $146 {[%emt 0:03:42]} ({Predecessor:} 11. Bb2 Nb6 12. Bb3 Bf5 13. O-O Bd3 14. Re1 Bxb5 15. e4 a4 16. Ba2 Rc8 17. Ba3 {1-0 (69) Ulanov,A (2463)-Tomaszewski,K (2347) Chess.com INT 2019}) 11... Nb6 {[%emt 0:00:54]} 12. Ba2 Nfd5 {[%emt 0:07:33]} 13. Qb3 {[%emt 0:03:07]} Be6 {[%emt 0:00:00] [#] aiming for ...Rc8.} 14. Ng5 $1 {[%emt 0:02:36]} Nf4 {[%emt 0:20:58]} 15. Nxe6 $16 {[%emt 0:00:30]} Nxg2+ $2 {[%emt 0:00:30][%mdl 8192] This move loses the game for Black.} (15... Nxe6 $16 {is tougher.} 16. O-O Qd7) 16. Ke2 $18 {[%emt 0:00:30]} ({Resist} 16. Kf1 Nxe3+ 17. Kg1 (17. fxe3 fxe6+ 18. Kg2 Nd5 $18) 17... a4 $18) 16... fxe6 {[%emt 0:00:30]} 17. Qxe6+ {[%emt 0:00:30] White is clearly winning.} Kh8 {[%emt 0:01:26]} 18. Bxe7 {[%emt 0:18:12] Active counter play!} Nf4+ {[%emt 0:00:30]} 19. exf4 {[%emt 0:00:30]} Qxd4 {[%emt 0:00:30]} 20. Bxf8 {[%emt 0:00:30]} Rxf8 {[%emt 0:00:30]} 21. Rac1 {[%emt 0:00:30]} Rxf4 {[%emt 0:00:30] Weighted Error Value: White=0.03 (flawless) /Black=0.63} 1-0